[Event "Saint Louis Super Swiss 2023"]
[Site "Saint Louis"]
[Date "2023.03.14"]
[Round "4.8"]
[White "Daggupati, Balaji"]
[Black "Lee, Alice"]
[Result "1-0"]
[ECO "B12"]
[WhiteElo "2513"]
[BlackElo "2362"]
[Annotator "TA"]
[PlyCount "97"]
[EventDate "2023.03.12"]
[EventType "swiss"]
[EventCountry "USA"]
[SourceTitle "playchess.com"]
[Source "ChessBase"]
[SourceQuality "1"]
[TimeControl "5400+30"]

{[%evp 12,97,31,28,33,17,27,16,132,-11,-10,-30,-9,-14,-18,-8,-11,-1,0,0,0,0,47,22,27,21,23,-14,-14,-18,-6,-6,0,-21,-28,-31,-4,-47,14,17,10,10,48,42,106,105,106,88,295,295,280,170,187,183,138,32,470,465,483,484,848,853,836,829,768,739,6314,6279,3047,2356,29984,29983,29983,29984,29984,0,748,0,29984,29985,29984,29984,29988,29989,29989,29990,29990,29990]} 1. e4 {[%emt 0:00:03]} c6 {[%emt 0:00:03]} 2. d4 {[%emt 0:00:06]} d5 {[%emt 0:00:04]} 3. e5 {[%emt 0:00:05]} Bf5 {[%emt 0:00:04]} 4. c4 {[%emt 0:00:06]} e6 {[%emt 0:00:12]} 5. Nc3 {[%emt 0:00:05]} dxc4 {[%emt 0:03:41]} 6. Bxc4 {[%emt 0:00:08]} Nd7 {[%emt 0:00:04]} 7. Nge2 {[%emt 0:00:43]} Ne7 {[%emt 0:04:18] B12: Caro-Kann: Advance Variation.} 8. O-O {[%emt 0:09:31] 8.Ng3 is the fancy move.} Bg6 {[%emt 0:02:31] [#]} 9. Bb3 $146 {[%emt 0:08:06]} ({Predecessor:} 9. Bg5 Qc7 10. Ng3 Nf5 11. Nge4 h6 12. Bf4 Be7 13. Nd6+ Nxd6 14. exd6 Bxd6 15. Bxd6 Qxd6 {0-1 Rangel,D (2207)-Jaferian,K (2227) Titled Tuesday intern op 01st Mar Early blitz 2022 (4)}) 9... Nf5 {[%emt 0:05:13]} (9... Nb6 $11 {keeps the balance.}) 10. Ne4 {[%emt 0:01:33]} ({White has to play} 10. g4 $1 $16 {[%cal Rg4f5]} Nh4 11. Ng3) 10... Be7 {[%emt 0:00:49]} 11. Bc2 {[%emt 0:07:52]} O-O {[%emt 0:01:27]} 12. N4g3 {[%emt 0:07:37]} Nxg3 {[%emt 0:02:52]} 13. Nxg3 {[%emt 0:00:23]} Rc8 {[%emt 0:20:10]} 14. Be3 {[%emt 0:06:50]} Qa5 {[%emt 0:06:57]} 15. a3 {[%emt 0:06:12]} Rfd8 {[%emt 0:02:05][%cal Od7e5]} 16. b4 {[%emt 0:02:45]} Qa6 {[%emt 0:02:56]} (16... Bxc2 $11 {is superior.} 17. Qxc2 Qb5) 17. f4 {[%emt 0:03:56] Threatens to win with f5.} Bxc2 {[%emt 0:06:04]} 18. Qxc2 {[%emt 0:00:12]} g6 {[%emt 0:07:57]} 19. Ne4 {[%emt 0:03:25]} (19. f5 $5) 19... Nb6 {[%emt 0:00:24]} 20. Bf2 {[%emt 0:06:44]} Qc4 {[%emt 0:03:27]} 21. Qd1 {[%emt 0:00:51]} Qd5 {[%emt 0:02:11]} 22. Nc3 {[%emt 0:01:48]} Qd7 {[%emt 0:01:41]} 23. Ne4 {[%emt 0:04:02]} Nd5 {[%emt 0:04:44][%cal Oc8a8]} (23... Ra8 $5 {[%cal Ra7a5]}) 24. Qf3 {[%emt 0:01:27] [#]} a5 {[%emt 0:00:51]} 25. bxa5 $11 {[%emt 0:00:53]} Ra8 {[%emt 0:00:06]} 26. Be1 {[%emt 0:01:49]} Nc7 {[%emt 0:02:38]} 27. Rd1 {[%emt 0:00:53]} Nb5 {[%emt 0:01:17]} ({Black should try} 27... h5 $14) 28. Bb4 $1 $16 {[%emt 0:01:01] aiming for Qh3.} Kg7 {[%emt 0:01:34] Black is weak on the dark squares} 29. Qf2 {[%emt 0:03:21]} Nxa3 $2 {[%emt 0:03:58] [#]} (29... Bxb4 $16 {was necessary.} 30. Nf6 (30. axb4 Qd5 $16) 30... Be1 31. Rfxe1 (31. Qxe1 Qe7 $14) 31... Qe7) 30. Nf6 $1 $18 {[%emt 0:09:51][%mdl 512]} Qc7 {[%emt 0:00:29]} 31. Bxe7 {[%emt 0:04:19]} (31. Qh4 Bxb4 32. Qxh7+ (32. Nxh7 $2 Rh8 $19) 32... Kf8 $14) 31... Qxe7 {[%emt 0:00:03]} 32. Qh4 {[%emt 0:00:09]} h6 {[%emt 0:01:42]} 33. Rd3 $40 {[%emt 0:02:07][%mdl 128] White is up to no good. White is more active.} (33. f5 $1 $16 {[%cal Rf5g6] fxg6 would be deadly.} exf5 34. Rxf5) 33... Rxa5 $2 {[%emt 0:01:10][%mdl 8192] [#]} ({Better is} 33... Nb5 $1 $14) 34. f5 $1 {[%emt 0:02:01][%mdl 512]} exf5 {[%emt 0:01:37]} 35. Rxf5 {[%emt 0:00:10][%cal Od3f3] Rdf3! is the strong threat.} (35. Rh3 Rh8 $11) 35... Nb5 {[%emt 0:03:01] [#]} (35... Nc2 $142 36. Rdf3 (36. Rh3 Rh8 $16) 36... Rxd4 37. Nh5+ {[%mdl 64] Discovered Attack} Kf8 38. Rxf7+ Qxf7 39. Rxf7+ Kxf7 40. Qf6+ {[%mdl 64] Deflection} Ke8 41. Ng7+ Kd7) 36. Nh5+ $1 {[%emt 0:03:20][%mdl 576] Discovered Attack} Kf8 {[%emt 0:00:05] [#]} 37. Rxf7+ $3 {[%emt 0:00:15][%mdl 576] Decoy} Kxf7 {[%emt 0:00:26] [#]} 38. e6+ $1 {[%emt 0:00:54][%mdl 512]} Ke8 {[%emt 0:00:50]} (38... Kxe6 39. Re3+) 39. Nf6+ {[%emt 0:00:07][%mdl 64] Discovered Attack} Qxf6 {[%emt 0:01:59]} 40. Qxf6 {[%emt 0:00:05][%csl Ge6][%cal Rf6f7]} Nd6 {[%emt 0:00:29] Wards off Qf7+} 41. Qh8+ {[%emt 0:01:59]} Ke7 {[%emt 0:00:07]} 42. Qg7+ {[%emt 0:00:03]} (42. Qxh6 Ra1+ 43. Kf2 Rf8+ 44. Rf3 Ra2+ 45. Ke1 Rxf3 46. gxf3 Ra1+ 47. Kd2 Ra2+ 48. Kc1 Ra3 49. Qg7+ (49. Qxg6 Rxf3 50. h4 Rf6 $18) 49... Kxe6 50. Qxg6+ Ke7 51. Qg5+ Kf7 $18) 42... Ke8 {[%emt 0:00:53]} 43. Qh8+ {[%emt 0:01:28]} (43. Qxg6+ $142 Ke7 44. Qg7+ Kxe6 45. Re3+ Kd5 46. Qe5+ {[%mdl 64] Skewer} Kc4 47. Qxa5 Nb5 48. Qxd8) 43... Ke7 {[%emt 0:00:09]} 44. Qg7+ {[%emt 0:00:03]} (44. Qh7+ $18 Kf6 45. Rf3+ Rf5 46. Qc7 (46. Qxh6 Rxf3 47. gxf3 Re8 $18)) 44... Ke8 $1 {[%emt 0:00:13]} 45. Qxg6+ {[%emt 0:00:43] White mates.} Ke7 {[%emt 0:00:09]} 46. Qg7+ {[%emt 0:00:05]} Ke8 {[%emt 0:00:32]} 47. Rf3 {[%emt 0:00:28][%csl Gg7][%cal Rf3f8]} Ra1+ {[%emt 0:00:27]} 48. Kf2 {[%emt 0:00:10][%csl Gf3][%cal Rg7f8]} Ne4+ {[%emt 0:00:22]} 49. Ke2 {[%emt 0:00:20] A superb game by Daggupati.   Weighted Error Value: White=0.45/Black=0.50} 1-0

[Event "Saint Louis Super Swiss 2023"]
[Site "Saint Louis"]
[Date "2023.03.14"]
[Round "4.9"]
[White "Swiercz, Dariusz"]
[Black "Caglar, Sila"]
[Result "1-0"]
[ECO "B45"]
[WhiteElo "2646"]
[BlackElo "2280"]
[Annotator "TA"]
[PlyCount "71"]
[EventDate "2023.03.12"]
[EventType "swiss"]
[EventCountry "USA"]
[SourceTitle "playchess.com"]
[Source "ChessBase"]
[SourceQuality "1"]
[TimeControl "5400+30"]

{[%evp 17,71,27,26,4,46,25,33,18,16,47,36,25,41,0,4,0,0,6,52,46,62,52,88,75,96,96,114,114,163,163,181,187,206,193,216,187,195,185,270,268,422,183,291,305,302,306,310,310,256,288,293,293,359,352,29973,29970]} 1. e4 {[%emt 0:00:03]} c5 {[%emt 0:00:07]} 2. Nf3 {[%emt 0:00:05]} e6 {[%emt 0:00:04]} 3. d4 {[%emt 0:00:24]} cxd4 {[%emt 0:00:06]} 4. Nxd4 {[%emt 0:00:03]} Nf6 {[%emt 0:00:07]} 5. Nc3 {[%emt 0:00:05]} Nc6 {[%emt 0:00:05]} 6. Nxc6 {[%emt 0:04:25]} bxc6 {[%emt 0:04:15]} 7. e5 {[%emt 0:00:46]} Nd5 {[%emt 0:00:06]} 8. Ne4 {[%emt 0:00:04]} Qc7 {[%emt 0:00:17]} 9. f4 {[%emt 0:00:02]} Qb6 {[%emt 0:00:12][%cal Od5f4]} 10. a3 {[%emt 0:00:06] B45: Sicilian Four Knights.} f5 {[%emt 0:06:50]} 11. exf6 {[%emt 0:00:07]} Nxf6 {[%emt 0:00:15]} 12. Nxf6+ {[%emt 0:00:06] White is slightly better.} gxf6 {[%emt 0:00:03]} 13. Qh5+ {[%emt 0:00:07]} Kd8 {[%emt 0:00:57]} 14. Be2 {[%emt 0:00:06]} Qc5 {[%emt 0:03:01] [#]} 15. Qxc5 $146 {[%emt 0:06:01]} ({Predecessor:} 15. Qh4 Be7 16. Bd2 a5 17. Bc3 Rf8 18. O-O-O Rb8 19. Bd4 Qf5 20. g4 Qxf4+ 21. Kb1 e5 22. Bc3 Qa4 23. Ka2 Qxc2 24. Bxa5+ Ke8 25. Rd2 Rxb2+ 26. Ka1 Ra2# {0-1 Paravyan,D (2617)-Urazayev,A (2420) Titled Tuesday intern op 26th Apr Early blitz 2022 (10)}) 15... Bxc5 {[%emt 0:00:07]} 16. Bd2 {[%emt 0:00:02][%cal Bc1d2,Bd2a5,Ba5c3][%mdl 32]} Rg8 {[%emt 0:02:19]} 17. g4 {[%emt 0:00:45][%cal Bg2g4,Bg4g5][%mdl 32]} Kc7 {[%emt 0:06:30]} (17... d5 $11) 18. Ba5+ {[%emt 0:27:46]} Bb6 {[%emt 0:00:56]} 19. Bc3 {[%emt 0:00:13]} f5 {[%emt 0:06:00] Black is now going downhill.} 20. g5 {[%emt 0:00:51]} d6 {[%emt 0:01:17]} 21. Rf1 {[%emt 0:12:42]} Bd7 {[%emt 0:07:27]} 22. O-O-O {[%emt 0:08:38][%cal Ba1d1,Bd1d6,Bd6e6][%mdl 32]} e5 {[%emt 0:07:20]} 23. fxe5 $18 {[%emt 0:00:39]} Rxg5 {[%emt 0:02:43]} 24. Rxd6 {[%emt 0:04:54]} Rag8 {[%emt 0:09:16]} 25. Rfd1 $1 {[%emt 0:07:22]} Be8 {[%emt 0:00:17]} 26. Re6 {[%emt 0:02:17] Threatens to win with Re7+.} Be3+ {[%emt 0:05:53]} 27. Kb1 {[%emt 0:02:47]} Kb6 {[%emt 0:00:41] Prevents Ba5+} (27... R5g7 $142 28. Ba5+ Bb6) 28. a4 {[%emt 0:03:01]} a5 {[%emt 0:07:31]} (28... R5g7 {was called for.} 29. b3 Kc7) 29. b4 {[%emt 0:01:38]} (29. Rd5 $142 Rg1+ 30. Ka2) 29... Rg1 {[%emt 0:00:18]} (29... axb4 $142 30. Bxb4 Bh5 31. a5+ Kb7) 30. bxa5+ {[%emt 0:00:24][%cal Bb4a5,Ba5a6][%mdl 32]} Kc5 {[%emt 0:00:02]} 31. Red6 {[%emt 0:04:32] aiming for Kb2.} Rxd1+ {[%emt 0:02:23]} 32. Rxd1 {[%emt 0:00:40] And now Kb2 would win.} ({Weaker is} 32. Bxd1 Bf7 $16) 32... Bf7 {[%emt 0:01:02] [#]} 33. Bb2 $1 {[%emt 0:12:43][%cal Rb2a3]} Kb4 {[%emt 0:00:34] [#] Repels Ba3+} 34. a6 {[%emt 0:00:05]} Kxa4 {[%emt 0:01:54]} 35. Bd4 {[%emt 0:01:27]} Bf4 {[%emt 0:03:07]} (35... Bxd4 $18 36. Rxd4+ Ka5) 36. Kb2 {[%emt 0:01:05] Weighted Error Value: White=0.17 (very precise) /Black=0.51} 1-0

[Event "Saint Louis Super Swiss 2023"]
[Site "Saint Louis"]
[Date "2023.03.14"]
[Round "4.10"]
[White "Boros, Denes"]
[Black "Malicka, Maria"]
[Result "1-0"]
[ECO "B12"]
[WhiteElo "2406"]
[BlackElo "2256"]
[Annotator "TA"]
[PlyCount "77"]
[EventDate "2023.03.12"]
[EventType "swiss"]
[EventCountry "USA"]
[SourceTitle "playchess.com"]
[Source "ChessBase"]
[SourceQuality "1"]
[TimeControl "5400+30"]

{[%evp 11,77,-14,29,30,31,30,31,39,62,75,73,62,68,62,76,91,91,10,107,80,95,97,99,88,90,93,86,12,0,-59,-78,-71,-85,-65,-41,-40,-43,-23,-36,-35,-8,-107,-105,-151,0,-46,-27,-124,0,0,0,0,0,0,2352,2345,29978,29979,29991,29992,29993,29994,29994,29995,29995,29996,29997,29998]} 1. e4 {[%emt 0:00:04]} c6 {[%emt 0:00:06]} 2. d4 {[%emt 0:00:10]} d5 {[%emt 0:00:06]} 3. e5 {[%emt 0:00:05]} Bf5 {[%emt 0:00:06]} 4. Nc3 {[%emt 0:00:16]} e6 {[%emt 0:01:17]} 5. g4 {[%emt 0:00:08]} Bg6 {[%emt 0:00:06]} 6. Nge2 {[%emt 0:00:04]} h5 {[%emt 0:05:59]} 7. Nf4 {[%emt 0:01:23] B12: Caro-Kann: Advance Variation.} Ne7 {[%emt 0:00:07] has lost popularity (7...Bh7).} 8. Nxg6 {[%emt 0:07:18]} Nxg6 {[%emt 0:00:07]} 9. gxh5 {[%emt 0:00:05] White is slightly better.} Ne7 {[%emt 0:00:28]} 10. Bg5 {[%emt 0:03:45]} Qb6 {[%emt 0:02:08]} 11. Na4 {[%emt 0:02:14]} Qa5+ {[%emt 0:02:43]} 12. c3 {[%emt 0:00:40]} Nd7 {[%emt 0:01:27]} 13. b4 {[%emt 0:02:18]} Qc7 {[%emt 0:00:33][%cal Od7e5] [#]} 14. Qg4 $146 {[%emt 0:14:34]} (14. Bd3 $16) ({Predecessor:} 14. Qe2 a5 15. b5 Nc8 16. Rb1 Ncb6 17. bxc6 bxc6 18. Nxb6 Nxb6 19. Qg4 Na4 20. Bd2 {1-0 Ivkina,O (2289)-Paikidze,N (2425) RUS-chT (Women) 12th 2011 (6)}) 14... O-O-O {[%emt 0:19:27]} (14... b5 $11 {keeps the balance.}) 15. Be2 {[%emt 0:12:06] White has more active pieces. The black rooks are badly placed.} f6 {[%emt 0:03:45]} 16. exf6 {[%emt 0:05:19]} gxf6 {[%emt 0:00:49]} 17. Bf4 {[%emt 0:00:17]} e5 {[%emt 0:00:18]} 18. dxe5 {[%emt 0:00:09]} fxe5 {[%emt 0:00:16]} 19. Bg3 {[%emt 0:00:10]} (19. Bg5 $16) 19... Ng8 $11 {[%emt 0:06:52]} 20. b5 {[%emt 0:12:19]} (20. Bh4 $11) 20... Ngf6 $15 {[%emt 0:05:14]} (20... cxb5 {feels hotter.} 21. Bxb5 Ngf6 22. Qe6 Rxh5 23. O-O Qd6) 21. Qf5 {[%emt 0:02:03]} cxb5 {[%emt 0:10:15]} 22. Bxb5 {[%emt 0:00:12]} Rxh5 {[%emt 0:00:23]} (22... Bd6 {is interesting.} 23. Rd1 Rh6 24. O-O Kb8) 23. Bxd7+ {[%emt 0:01:21][%mdl 64] Remove Defender} Qxd7 {[%emt 0:00:03]} 24. Qxf6 {[%emt 0:00:17] And now Nb2 would win.} Qxa4 {[%emt 0:00:05]} 25. O-O {[%emt 0:00:34]} Qc6 {[%emt 0:04:01]} (25... Qg4 $5 {[%cal Rf8c5]} 26. Rfe1 Bd6 $15) 26. Qf3 {[%emt 0:06:27]} (26. Bxe5 $11 Qxf6 27. Bxf6) 26... Qg6 $17 {[%emt 0:00:24]} 27. Rad1 {[%emt 0:01:01]} (27. Rae1 $142) 27... Qf5 $2 {[%emt 0:06:28]} (27... e4 $1 $17 {[%cal Re4f3]} 28. Qe3 b6) 28. Qe2 {[%emt 0:04:13]} (28. Qg2 $11) 28... e4 {[%emt 0:06:55]} (28... Bc5 $5 {[%cal Re5e4]}) 29. Rd4 {[%emt 0:00:42] [#]} (29. Rb1 $11 Qg6 30. Rb5) 29... Bd6 {[%emt 0:03:32]} (29... Bc5 $1 $17 {White must now prevent ...Rg8.} 30. Rfd1 Bxd4 31. cxd4 Rd7 32. Rc1+ Kd8) 30. c4 {[%emt 0:01:24]} Rxh2 $1 {[%emt 0:04:53][%cal Of5h3] ( -> ...Qh3!)} 31. Rxd5 $1 {[%emt 0:00:29][%mdl 64] Double Attack} (31. Kxh2 Rh8+ 32. Kg1 Qh3 33. f4 Rg8 34. Qh2 Rxg3+) (31. Bxh2 {gets mated.} Bxh2+ 32. Kh1 Be5 33. f3 Qh3+ 34. Kg1 Bxd4+) 31... Qh3 {[%emt 0:00:26][%csl Gh3][%cal Rh2h1]} 32. Qxe4 {[%emt 0:00:32]} Bxg3 {[%emt 0:00:36][%mdl 8192]} (32... Rg8 $11 33. Rg5 (33. Qf5+ Qxf5 34. Rxf5 Bxg3 $15) 33... Rh8) 33. Rxd8+ $18 {[%emt 0:01:26]} Kxd8 {[%emt 0:00:05] [#]} 34. Rd1+ $1 {[%emt 0:03:31] White mates.} Kc7 {[%emt 0:00:29]} 35. Qe7+ {[%emt 0:00:18]} Kc6 {[%emt 0:00:15]} 36. Qe8+ {[%emt 0:00:39]} Kc7 {[%emt 0:00:53]} 37. Qd8+ {[%emt 0:00:18]} Kc6 {[%emt 0:00:11]} 38. Qd5+ {[%emt 0:00:19]} Kc7 {[%emt 0:00:23]} 39. Qc5+ {[%emt 0:00:08] A cool game by Boros.   Weighted Error Value: White=0.23 (precise) /Black=0.35} 1-0

[Event "Saint Louis Super Swiss 2023"]
[Site "Saint Louis"]
[Date "2023.03.17"]
[Round "5.1"]
[White "Theodorou, Nikolas"]
[Black "Quesada Perez, Yasser"]
[Result "1/2-1/2"]
[ECO "C09"]
[WhiteElo "2584"]
[BlackElo "2604"]
[Annotator "TA"]
[PlyCount "35"]
[EventDate "2023.03.12"]
[EventType "swiss"]
[EventCountry "USA"]
[TimeControl "5400+30"]

{[%evp 21,35,0,23,0,9,0,25,0,4,-10,0,0,0,0,0,-4]} 1. e4 {[%emt 0:02:01]} c5 {[%emt 0:00:18]} 2. Nf3 {[%emt 0:00:31]} e6 {[%emt 0:00:07]} 3. c3 {[%emt 0:00:48]} d5 {[%emt 0:05:09]} 4. exd5 {[%emt 0:00:08]} exd5 {[%emt 0:00:05]} 5. d4 {[%emt 0:00:48]} Nc6 {[%emt 0:00:06]} 6. Bb5 {[%emt 0:01:19]} Bd6 {[%emt 0:00:08]} 7. O-O {[%emt 0:00:48]} Nge7 {[%emt 0:00:04][%cal Bg8e7,Be7g6,Bg6f4,Bf4d3][%mdl 32]} 8. dxc5 {[%emt 0:04:33]} Bxc5 {[%emt 0:03:38]} 9. Nbd2 {[%emt 0:03:39]} O-O {[%emt 0:00:55]} 10. Nb3 {[%emt 0:00:38]} Bb6 {[%emt 0:00:08] 10...Bb6 scores better than 10...Bd6.} 11. Bd3 {[%emt 0:14:12]} h6 {[%emt 0:03:24]} 12. Bf4 {[%emt 0:10:21] [#] C09: French Tarrasch: 3...c5 4 exd5 exd5 5 Ngf3 Nc6.} Ng6 $146 {[%emt 0:12:29]} ({Predecessor:} 12... Bg4 13. h3 Bh5 14. Be2 Re8 15. Re1 Ng6 16. Bg3 Qd7 17. Nfd4 Bxe2 18. Rxe2 Rxe2 19. Qxe2 Nxd4 20. Nxd4 Bxd4 21. cxd4 Re8 {0-1 Mamedov,R (2578)-Dubov,D (2712) Wch Rapid Almaty 2022 (6)}) 13. Bg3 {[%emt 0:04:04]} Qf6 {[%emt 0:00:06]} 14. Nfd4 {[%emt 0:02:56] White has an edge.} Nf4 {[%emt 0:09:23][%cal Rc6d4] The position is equal.} 15. Qd2 {[%emt 0:07:44]} Nxd3 {[%emt 0:03:28]} 16. Qxd3 {[%emt 0:00:04]} Nxd4 {[%emt 0:00:13]} 17. Nxd4 {[%emt 0:00:16]} Bxd4 {[%emt 0:00:07]} 18. Qxd4 {[%emt 0:00:55] A rather calm draw.   Weighted Error Value: White=0.17 (very precise) /Black=0.07 (flawless)} 1/2-1/2